Cogmind - Beta 15 @@@ ROGUE MODE // 2025.07.22 @ 21:41:16 Player: C0-2MO Result: Escaped! Performance ------------- Evolutions (9) 4500 Regions Visited (27) 5400 Robots Destroyed (301) 1505 Value Destroyed (15613) 15613 Prototype IDs (41) 820 Alien Tech Used (0) 0 Bonus (10682) 10682 TOTAL SCORE: 38520 Bonus ------- High Alert Combat Kills 2073 Follower Combat Kills 1394 Entered Garrisons 1200 Used RIF Installer 2500 Entered DSFs 500 Aligned with FarCom 300 Win 3000 Friendly Fire -285 Cogmind --------- Core Integrity 1418/1600 Matter 295/300 Energy 197/200 System Corruption 0% Temperature Cool (76) Movement Flying (27) Location To Epsilon Eridani Parts ------- > --- POWER (2) -------- Micro Fission Core Micro Antimatter Reactor > --- PROPULSION (9) --- Xenon Bombardment Thruster Field Propulsion Drive Field Propulsion Drive Q-thruster Impulse Thruster Array Improved Q-thruster > --- UTILITY (10) ----- Experimental Heat Sink Medium Storage Unit Machine Analyzer Terrain Scan Processor Advanced Melee Analysis Suite Reaction Control System Improved Core Shielding Improved Utility Shielding Graphene Brace Advanced Corruption Screen > --- WEAPON (4) ------- Enhanced Nova Cannon Enhanced Force Lance > --- INVENTORY (10) --- Light Particle Reactor Light Quantum Reactor Q-thruster Power Amplifier Terrain Scanner Stasis Canceller EM Shield Enhanced Force Lance Peak State ------------ > --- POWER ------------ Micro Fission Core Micro Antimatter Reactor > --- PROPULSION ------- Xenon Bombardment Thruster Field Propulsion Drive Field Propulsion Drive Field Propulsion Drive Advanced Surge Thruster Q-thruster Impulse Thruster Array Improved Q-thruster > --- UTILITY ---------- Experimental Heat Sink Medium Storage Unit Machine Analyzer Terrain Scan Processor Advanced Melee Analysis Suite Improved Core Shielding Improved Utility Shielding Graphene Brace Improved System Shield Advanced Corruption Screen > --- WEAPON ----------- Enhanced Nova Cannon Greatsword Enhanced Force Lance > --- INVENTORY -------- Light Particle Reactor Light Quantum Reactor Q-thruster Power Amplifier Terrain Scanner Stasis Canceller Reaction Control System EM Shield Enhanced Force Lance [Rating: 153] Favorites ----------- Power Reinforced Deuterium Engine Engine Reinforced Deuterium Engine Power Core Micro Fission Core Reactor Light Quantum Reactor Propulsion Advanced Treads Treads Advanced Treads Leg Carbon-fiber Leg Wheel Armored Wheel Hover Unit Gravmag Array Flight Unit Xenon Bombardment Thruster Utility Advanced Heat Sink Device Advanced Heat Sink Storage Large Storage Unit Processor Advanced Targeting Computer Hackware Relay Coupler [NC] Protection Improved Medium Armor Plating Weapon Cooled Particle Cannon Energy Gun Particle Gun Energy Cannon Cooled Particle Cannon Ballistic Gun Assault Rifle Launcher Long-range Missile Launcher Special Weapon Remote Datajack Impact Weapon Heavy Mace Slashing Weapon Greatsword Piercing Weapon Enhanced Force Lance Special Melee Weapon Datajack Build | -11 -10 -10 -10 -9 -8 -8 -8 -8 -7 -7 -7 -7 -6 -6 -6 -6 -6 -6 -6 -6 -5 -5 -4 -3 -3 -2 -1 ------- Run | Yrd Mat Min Exi Min Mat Gar Mat Gar Fac Gar Fac Gar Fac Gar Fac Gar Fac Low Low Zio Pro Fac Fac Res DSF Res Acc Slots Evolved 18 | . . . . . 4 . . . 2 . . . 2 . . . . . . . . 2 2 2 . 2 2 Power 1 | . . . . . . . . . . . . . . . . . . . . . . . . 1 . . . Propulsion 7 | . . . . . . . . . 1 . . . 1 . . . . . . . . 2 2 . . . 1 Utility 8 | . . . . . 2 . . . 1 . . . 1 . . . . . . . . . . 1 . 2 1 Weapon 2 | . . . . . 2 . . . . . . . . . . . . . . . . . . . . . . Parts Attached 278 | 7 20 . . 5 33 10 8 1 11 6 . 11 36 22 6 10 . 3 1 2 1 5 14 11 11 27 17 Power 29 | 1 4 . . 1 3 3 . . 1 . . . 4 2 . 1 . . . . . . 2 2 . 4 1 Engine 15 | 1 4 . . 1 1 1 . . 1 . . . 2 1 . . . . . . . . 2 . . 1 . Core 5 | . . . . . 2 2 . . . . . . . . . . . . . . . . . . . 1 . Reactor 9 | . . . . . . . . . . . . . 2 1 . 1 . . . . . . . 2 . 2 1 Propulsion 74 | 2 4 . . 3 6 . 1 1 2 . . 1 13 9 1 5 . . . . . 2 3 2 4 10 5 Treads 12 | 1 1 . . 1 2 . 1 1 2 . . 1 2 . . . . . . . . . . . . . . Leg 29 | . 2 . . 2 4 . . . . . . . 11 9 1 . . . . . . . . . . . . Wheel 7 | 1 1 . . . . . . . . . . . . . . 5 . . . . . . . . . . . Hover 11 | . . . . . . . . . . . . . . . . . . . . . . 2 3 2 4 . . Flight 15 | . . . . . . . . . . . . . . . . . . . . . . . . . . 10 5 Utility 99 | 1 6 . . . 10 3 3 . 5 5 . 6 7 7 4 2 . . 1 1 1 3 7 6 3 9 9 Device 44 | 1 3 . . . 5 1 3 . 1 1 . 2 3 4 4 . . . . 1 1 . 2 3 . 7 2 Storage 8 | . 2 . . . 2 . . . 1 . . . . . . 1 . . 1 . . . . 1 . . . Processor 10 | . . . . . . . . . . . . . 1 . . . . . . . . . 1 2 1 1 4 Hackware 19 | . . . . . . . . . 1 2 . 4 2 1 . 1 . . . . . 1 3 . 2 1 1 Protection 18 | . 1 . . . 3 2 . . 2 2 . . 1 2 . . . . . . . 2 1 . . . 2 Artifact . | . . . . . . . . . . . . . . . . . . . . . . . . . . . . Weapon 76 | 3 6 . . 1 14 4 4 . 3 1 . 4 12 4 1 2 . 3 . 1 . . 2 1 4 4 2 Energy Gun 37 | 2 5 . . 1 12 2 . . 2 . . 1 6 2 . . . 2 . 1 . . 1 . . . . Energy Cannon 14 | . . . . . . . 4 . . . . 3 2 2 1 . . . . . . . . 1 . . 1 Ballistic Gun 3 | 1 . . . . 1 . . . . . . . 1 . . . . . . . . . . . . . . Ballistic Cannon . | . . . . . . . . . . . . . . . . . . . . . . . . . . . . Launcher 2 | . . . . . 1 . . . . . . . 1 . . . . . . . . . . . . . . Special Weapon 5 | . 1 . . . . 1 . . 1 . . . . . . 1 . 1 . . . . . . . . . Impact Weapon 3 | . . . . . . 1 . . . 1 . . . . . . . . . . . . 1 . . . . Slashing Weapon 4 | . . . . . . . . . . . . . 1 . . 1 . . . . . . . . . 2 . Piercing Weapon 7 | . . . . . . . . . . . . . . . . . . . . . . . . . 4 2 1 Special Melee Weapon 1 | . . . . . . . . . . . . . 1 . . . . . . . . . . . . . . Unidentified Prototypes 12 | . . . . . 1 . 1 . . . . . 2 . 1 . . . . 1 . . 2 1 . 2 1 Corrupted Parts 2 | . . . . 2 . . . . . . . . . . . . . . . . . . . . . . . System Corruption 9 | . . . . 9 . . . . . . . . . . . . . . . . . . . . . . . Parts Lost 100 | . 9 . . 4 11 4 . 1 1 . . 2 22 5 1 . . . . . 3 14 6 . . 9 8 Power 17 | . 3 . . 1 2 1 . . . . . . 2 2 . . . . . . . 2 1 . . 2 1 Propulsion 39 | . 4 . . 1 3 . . 1 . . . 2 8 1 . . . . . . 2 6 3 . . 3 5 Utility 21 | . . . . . 2 1 . . 1 . . . 4 1 1 . . . . . 1 4 2 . . 3 1 Weapon 23 | . 2 . . 2 4 2 . . . . . . 8 1 . . . . . . . 2 . . . 1 1 Highest Loss Streak 14 | . 3 . . 4 7 2 . 1 1 . . 1 8 1 1 . . . . . 2 14 6 . . 8 3 To Critical Strikes . | . . . . . . . . . . . . . . . . . . . . . . . . . . . . Average Backups 12 | 1 6 12 14 14 9 13 14 15 15 14 15 13 12 14 9 9 14 14 15 16 17 16 3 3 6 8 9 Power 1 | . . 1 2 1 1 1 1 1 1 1 1 1 2 1 . 1 1 1 1 1 1 . . . . . 1 Propulsion 1 | . . 3 4 4 . . . 1 1 1 1 . . 3 2 2 5 5 5 5 4 1 . . . 1 . Utility 5 | . 2 3 3 4 3 7 7 8 8 7 8 6 4 4 3 2 4 4 5 5 3 5 . 1 2 3 4 Weapon 3 | . 1 3 4 3 3 3 2 3 3 3 3 3 3 3 1 2 3 2 2 4 6 5 . . 2 2 2 Tool/Special . | . . . . . . . . . . . . . . . . . . . . . . . . . . . . Unused Backups 42 | . . . . 3 2 2 2 3 1 7 . 1 2 . 3 . . . . . 1 6 . . 1 3 5 Power 8 | . . . . . . 1 . . . 1 . 1 2 . . . . . . . . . . . . . 3 Propulsion 11 | . . . . 3 . . . . . 3 . . . . 2 . . . . . . . . . . 2 1 Utility 15 | . . . . . 2 1 1 2 . 3 . . . . 1 . . . . . . 3 . . . 1 1 Weapon 4 | . . . . . . . 1 . . . . . . . . . . . . . 1 1 . . 1 . . Tool/Special 4 | . . . . . . . . 1 1 . . . . . . . . . . . . 2 . . . . . Average Slot Usage (%) 93 | . 94 100 100 84 86 99 100 99 98 97 92 97 88 99 99 100 100 100 100 95 79 69 54 65 80 78 89 Engine 5 | . 12 14 14 13 6 6 9 9 7 7 7 7 2 . 6 1 . . . . . . 1 3 . . . Reactor 1 | . . . . . . . . . . . . . 2 4 . 4 6 6 6 6 6 4 . 3 9 3 4 Treads 10 | . 5 . . . 11 18 18 17 22 23 23 21 6 . . . . . . . . . . . . . . Leg 7 | . 18 28 28 28 6 . . . . . . . 15 25 26 12 . . . . . 10 . . . . . Wheel 2 | . 3 . . . . . . . . . . . . . . 13 26 26 26 26 25 14 . . . . . Flight 1 | . . . . . . . . . . . . . . . . . . . . . . . . . . 24 33 Device 17 | . 15 14 14 14 12 18 26 27 20 18 15 15 17 14 17 20 13 19 20 20 25 16 9 12 9 10 12 Storage 7 | . 11 14 14 14 7 9 9 9 7 7 7 7 6 6 3 3 6 6 6 6 6 4 . . 4 4 4 Processor 2 | . . . . . . . . . . . . . 4 6 6 6 6 6 6 6 6 5 3 8 9 6 14 Hackware 2 | . . . . . . . . . 1 1 . 8 4 3 6 7 13 6 6 5 . . 12 9 9 6 3 Protection 3 | . . . . . 5 8 . . 6 6 7 4 1 7 4 . . . . . . 4 . . . . 4 Energy Gun 11 | . 23 28 28 14 33 34 3 . 4 1 . . 14 15 13 6 . 5 12 6 5 4 . 4 . . . Energy Cannon 13 | . . . . . . . 32 35 25 26 30 28 5 9 13 13 13 13 13 9 . . . 3 . . . Peak Build Rating 153 | 6 10 10 11 11 36 37 45 46 50 52 51 51 67 69 67 69 59 66 66 73 74 81 76 107 139 139 153 Average Rating 49 | 4 8 10 10 8 26 34 42 45 46 49 51 49 55 64 61 63 59 64 65 66 71 71 63 87 126 115 133 On Entrance 51 | . 6 10 10 11 9 36 34 45 46 49 51 51 47 67 60 66 59 59 66 65 73 73 27 54 107 139 130 Naked Turns . | . . . . . . . . . . . . . . . . . . . . . . . . . . . . Heaviest Build 86 | 8 49 32 32 29 60 49 67 67 77 80 80 81 67 67 60 85 83 86 86 85 82 80 16 62 79 79 55 Greatest Support 100 | 10 40 20 20 20 44 44 42 42 64 64 64 64 65 65 60 60 48 48 48 48 48 36 80 86 100 100 66 Greatest Overweight (x) 7 | . 4 1 1 2 3 1 1 3 1 1 1 1 7 1 . 7 1 1 1 1 2 5 1 . . . . Average Overweight (x) . | . 1 1 1 1 . . 1 1 . . 1 . . . . . 1 1 1 1 1 1 . . . . . Largest Inventory Capacity 20 | 5 20 15 15 15 15 15 15 15 15 15 15 15 15 15 15 20 20 20 20 20 20 20 5 10 10 10 10 Average Capacity 14 | 5 14 15 15 15 13 15 15 15 15 15 15 15 15 15 9 14 20 20 20 20 20 18 5 5 10 10 10 Most Carried 20 | 4 9 14 15 15 15 15 15 15 15 15 15 15 15 15 15 14 15 15 16 20 19 20 5 5 10 10 10 Average Carried 13 | 1 6 13 14 14 10 14 14 15 15 14 15 14 13 14 9 9 14 14 15 16 17 16 4 4 6 9 9 Final Capacity 20 | 5 15 15 15 15 15 15 15 15 15 15 15 15 15 15 5 20 20 20 20 20 20 5 5 10 10 10 10 Final Carried 19 | 4 9 14 15 11 15 15 15 15 15 15 15 15 15 15 5 14 15 15 16 19 17 5 4 3 10 10 8 Class Distribution -------------------- 26% | Scavenger-Skirmisher 20% | Skirmisher 12% | Mutant 11% | Scavenger-Tank 9% | Scavenger-Gunner 6% | Bothacker-Skirmisher Dominant Class ---------------- Mutant | -10/Materials Mutant | -10/Mines Mutant | -10/Exiles Mutant | -9/Mines Scavenger-Skirmisher | -8/Materials Scavenger-Skirmisher | -8/Garrison Skirmisher | -8/Materials Skirmisher | -8/Garrison Scavenger-Tank | -7/Factory Bothacker-Skirmisher | -7/Garrison Bothacker-Skirmisher | -7/Factory Bothacker-Skirmisher | -7/Garrison Scavenger-Skirmisher | -6/Factory Scavenger-Skirmisher | -6/Garrison Scavenger-Skirmisher | -6/Factory Scavenger-Skirmisher | -6/Garrison Scavenger-Skirmisher | -6/Factory Scavenger-Gunner | -6/Lower Caves Scavenger-Gunner | -6/Lower Caves Scavenger-Gunner | -6/Zion Scavenger-Gunner | -5/Proximity Caves Scavenger-Skirmisher | -5/Factory Hacker-Mutant | -4/Factory Hacker-Mutant | -3/Research Hacker-Mutant | -3/DSF Scavenger-Sprinter | -2/Research Scavenger-Scout | -1/Access Resources | -11 -10 -10 -10 -9 -8 -8 -8 -8 -7 -7 -7 -7 -6 -6 -6 -6 -6 -6 -6 -6 -5 -5 -4 -3 -3 -2 -1 ----------- Run | Yrd Mat Min Exi Min Mat Gar Mat Gar Fac Gar Fac Gar Fac Gar Fac Gar Fac Low Low Zio Pro Fac Fac Res DSF Res Acc Matter Collected 4860 | 285 289 . . 43 439 194 110 63 316 276 . 360 655 530 70 90 . 105 40 . 70 85 130 . . 525 185 Remotely . | . . . . . . . . . . . . . . . . . . . . . . . . . . . . Salvage Created 15018 | 128 658 52 . 98 1092 892 1330 691 717 795 . 1104 2527 2209 179 396 . 71 65 . 167 278 275 . . 1032 262 Parts 552 | 8 34 7 . 2 56 33 49 26 30 22 . 40 74 65 5 11 . 4 6 . 11 7 . . . 45 17 Haulers Intercepted 9 | . 2 . . . 2 . 1 . . . . . . . . . . . . . . . 2 . . 1 1 Recyclers Shooed 10 | 1 . . . . 1 . 2 . . . . . 3 . . . . . . . . . . . . 3 . Parts Field Recycled . | . . . . . . . . . . . . . . . . . . . . . . . . . . . . Retrieved Matter . | . . . . . . . . . . . . . . . . . . . . . . . . . . . . Parts Self-Destructed 33 | . . . . . . . . . . . . . . . . . . 14 9 . 10 . . . . . . Prevented 7 | . . . . . . . . . . . . . . . . . . 5 . . 2 . . . . . . Kills | -11 -10 -10 -10 -9 -8 -8 -8 -8 -7 -7 -7 -7 -6 -6 -6 -6 -6 -6 -6 -6 -5 -5 -4 -3 -3 -2 -1 ------- Run | Yrd Mat Min Exi Min Mat Gar Mat Gar Fac Gar Fac Gar Fac Gar Fac Gar Fac Low Low Zio Pro Fac Fac Res DSF Res Acc Combat Hostiles Destroyed 248 | . 13 3 . 2 20 21 15 18 14 16 . 22 31 41 3 3 . 1 3 . 5 7 1 . . 9 . Melee 10 | . . . . . . . . . . . . . 1 . . . . . . . . . . . . 9 . Guns 86 | . 13 3 . 1 19 14 . . . 2 . . 9 10 2 . . 1 3 . 5 4 . . . . . Cannons 109 | . . . . . . . 15 18 13 14 . 20 10 16 1 2 . . . . . . . . . . . AOE 22 | . . . . 1 1 3 . . . . . . 4 10 . . . . . . . 3 . . . . . Classes Destroyed 20 | 2 6 . . . 4 1 . 1 1 1 . . 1 1 . . . 1 . . . . . . . . 1 Worker 7 | . 2 . . . . . 3 . 1 . . . . . . . . . . . . . 1 . . . . Builder 4 | . . . . . 3 . . . . . . . . . . . . . . . . . . . . . 1 Tunneler 3 | 2 . . . . . . 1 . . . . . . . . . . . . . . . . . . . . Hauler 9 | . 2 . . . 2 . 1 . . . . . . . . . . . . . . . 2 . . 1 1 Recycler 17 | 1 . . . . 1 . 5 . . . . . 6 . . . . . . . . . . . . 4 . Mechanic 1 | . . . . . . . . . . . . . . . . . . . . . . . . . . . 1 Operator 5 | . 1 . . . . . 1 . . . . . . . . . . . . . . . . . . . 3 Watcher 6 | . 1 . . . 1 . 1 . 1 . . . . 1 . 1 . . . . . . . . . . . Swarmer 46 | . 2 3 . . 1 . . 6 . 3 . . 4 13 . . . . 3 . 4 2 . . . 5 . Cutter 5 | . . . . . . 2 . . . . . . . . . . . . . . . . . . . 3 . Saboteur 1 | . . . . . . . . . . . . . . 1 . . . . . . . . . . . . . Grunt 115 | . 11 . . 2 14 12 13 4 5 6 . 11 14 20 . . . . . . . 2 . . . 1 . Brawler 6 | . . . . . . . . . 1 . . . 1 1 2 1 . . . . . . . . . . . Duelist 9 | . . . . . 1 2 1 . . . . 2 1 . 1 . . . . . . 1 . . . . . Sentry 25 | . . . . . 3 4 1 2 . 4 . 2 3 4 . . . . . . 1 1 . . . . . Specialist 4 | . . . . . . . . . . 1 . 1 2 . . . . . . . . . . . . . . Hunter 10 | . . . . . 1 1 . 1 . 2 . 2 2 1 . . . . . . . . . . . . . Programmer 25 | . . . . . . . . 5 8 . . 4 3 1 . 2 . . . . . 1 1 . . . . Heavy 1 | . . . . . . . . . . . . . 1 . . . . . . . . . . . . . . Behemoth 1 | . . . . . . . . . . . . . . . . . . 1 . . . . . . . . . Thug 1 | . . . . . . . . . . . . . 1 . . . . . . . . . . . . . . Best Kill Streak 10 | 2 5 3 . 2 6 4 7 5 3 4 . 10 5 10 2 3 . 1 3 . 4 5 2 . . 10 1 Combat Bots Only 10 | . 3 3 . 2 6 4 5 5 3 4 . 10 5 10 2 3 . 1 3 . 4 5 1 . . 8 . Max Kills in Single Turn 4 | 1 2 1 . 1 2 2 2 2 1 2 . 2 4 3 1 1 . 1 1 . 1 1 1 . . 1 1 Gunslinging 1 | . . . . . 1 . . . . . . . . . . . . . . . . . . . . . . Exploded 4 | . . . . 1 1 2 . . . . . . 4 3 . . . . . . . 1 . . . . . Melee 1 | . . . . . . . . . . . . . 1 . . . . . . . . . . . . 1 . Uniques/NPCs Destroyed . | . . . . . . . . . . . . . . . . . . . . . . . . . . . . Combat | -11 -10 -10 -10 -9 -8 -8 -8 -8 -7 -7 -7 -7 -6 -6 -6 -6 -6 -6 -6 -6 -5 -5 -4 -3 -3 -2 -1 -------- Run | Yrd Mat Min Exi Min Mat Gar Mat Gar Fac Gar Fac Gar Fac Gar Fac Gar Fac Low Low Zio Pro Fac Fac Res DSF Res Acc Hostile Shots Fired 1627 | . 110 15 . 11 143 66 39 83 67 122 . 98 261 175 2 11 . 16 . . 21 135 66 . 8 83 95 Missed 525 | . 21 4 . 1 41 17 16 33 16 44 . 31 88 64 . 4 . 5 . . 3 40 18 . 4 27 48 Hits 1102 | . 89 11 . 10 102 49 23 50 51 78 . 67 173 111 2 7 . 11 . . 18 95 48 . 4 56 47 Melee 34 | . . . . . . 2 . . . . . 7 13 3 1 . . . . . . . . . . 8 . Projectile 1068 | . 89 11 . 10 102 47 23 50 51 78 . 60 160 108 1 7 . 11 . . 18 95 48 . 4 48 47 AOE 7 | . . . . . . 1 . . 1 . . . . . . . . . . . . 1 1 . . 3 . Critical Strikes 43 | . . . . 1 2 2 . 1 5 3 . 4 5 3 . . . . . . . 1 5 . 2 6 3 Actively Blocked 17 | . . . . . . . . . . . . . . . . . . . . . . 1 5 . 2 6 3 Part Disruptions 3 | . . . . . . . . 1 . . . . 1 . . . . . . . . . . . . . 1 Damage Taken 18399 | . 1086 89 . 176 1479 791 274 503 807 698 . 1013 3001 1599 72 107 . 184 . . 291 2131 1095 . 212 1606 1185 Core 3062 | . 181 17 . 21 245 54 78 40 144 1 . 134 547 213 . 18 . . . . 41 696 215 . . 235 182 Absorbed by Shields 468 | . . . . . . . 107 120 62 179 . . . . . . . . . . . . . . . . . Redirected to Shielding 329 | . . . . . . . . . . . . . . 5 5 . . . . . . 205 . . . . 114 Ignored by Resistances 12 | . . . . . . . . . . . . . 12 . . . . . . . . . . . . . . Regen/Repaired (Parts) 1697 | . 80 . . . 20 . 153 . 367 589 . 160 155 . . . . . . . . . . 153 . . 20 Core Remaining (%) 58 | 100 . . . 12 . . . 24 . . . 60 . . . . . . . . 3 30 81 . 100 83 88 Volleys Fired 688 | 5 83 6 . 11 63 46 37 48 41 38 . 54 109 93 7 5 . 5 7 . 6 15 . . . . 9 Largest 4 | 2 2 2 . 2 4 4 4 4 4 4 . 4 4 4 4 4 . 4 4 . 1 1 . . . . 1 Hottest 300 | 70 100 90 . 90 256 254 254 170 234 201 . 300 276 275 269 269 . 275 275 . 250 250 . . . . 120 Shots Fired 1900 | 10 123 12 . 16 215 168 148 159 146 121 . 147 292 244 27 14 . 10 18 . 6 15 . . . . 9 Gun 980 | 10 122 12 . 16 213 165 12 . 12 15 . . 207 151 13 6 . 3 6 . 6 11 . . . . . Cannon 859 | . . . . . . . 136 159 130 99 . 137 70 85 14 6 . 4 10 . . . . . . . 9 Launcher 18 | . . . . . 2 3 . . . . . . 1 8 . . . . . . . 4 . . . . . Special 43 | . 1 . . . . . . . 4 7 . 10 14 . . 2 . 3 2 . . . . . . . . Kinetic 30 | 5 12 . . . 7 . . . . . . . 6 . . . . . . . . . . . . . . Thermal 1750 | 5 95 . . . 190 165 148 159 142 114 . 137 271 236 27 12 . 7 16 . 6 11 . . . . 9 Explosive 18 | . . . . . 2 3 . . . . . . 1 8 . . . . . . . 4 . . . . . Electromagnetic 60 | . 16 12 . 16 16 . . . . . . . . . . . . . . . . . . . . . . Robot Hit Streak 35 | 2 13 3 . 10 10 13 12 9 12 15 . 22 35 18 7 6 . 2 5 . 7 7 . . . . . Robot Miss Streak 10 | 3 5 4 . 2 7 2 8 4 4 5 . 3 4 3 2 1 . 3 1 . 10 6 . . . . . Penetration Max . | . . . . . . . . . . . . . . . . . . . . . . . . . . . . Secondary Targets 6 | . 1 . . . 4 1 . . . . . . . . . . . . . . . . . . . . . Max Gunslinging Chain 1 | . 1 . . . 1 1 . . . . . . . . . . . . . . . . . . . . . Shots Hit Robots 1236 | 5 87 9 . 15 122 106 79 78 83 67 . 88 206 171 16 16 . 4 10 . 6 14 18 . . 24 12 Core Hits 520 | 4 34 5 . 6 64 41 37 22 22 27 . 35 75 80 6 8 . 1 3 . 7 25 1 . . 12 5 Critical Kills 3 | . . . . . . . . . . . . . . 2 . 1 . . . . . . . . . . . Critical Parts Destroyed 6 | . . . . . . . . . . . . 1 . 3 . . . . . . . . 2 . . . . Critical Strikes 57 | . 2 . . . 5 9 . . 1 2 . 1 9 12 1 4 . . 1 . . . 2 . . 4 4 Burn 38 | . 2 . . . 5 9 . . 1 2 . . 9 7 1 1 . . 1 . . . . . . . . Meltdown 3 | . . . . . . . . . . . . . . 2 . 1 . . . . . . . . . . . Smash 6 | . . . . . . . . . . . . 1 . 3 . . . . . . . . 2 . . . . Sever 4 | . . . . . . . . . . . . . . . . 2 . . . . . . . . . . 2 Impale 6 | . . . . . . . . . . . . . . . . . . . . . . . . . . 4 2 Melee Attacks 211 | . . . . . . 7 . 5 . 15 . 3 13 6 . 7 . . . . 1 . 34 . . 50 70 Impact 72 | . . . . . . 7 . 5 . 15 . 3 2 6 . . . . . . . . 34 . . . . Slashing 93 | . . . . . . . . . . . . . 10 . . 7 . . . . 1 . . . . 18 57 Piercing 45 | . . . . . . . . . . . . . . . . . . . . . . . . . . 32 13 Sneak Attacks 17 | . . . . . . . . . . . . 1 1 . . 1 . . . . . . 3 . . 7 4 Combat Hostiles 1 | . . . . . . . . . . . . 1 . . . . . . . . . . . . . . . Follow-up Attacks 6 | . . . . . . . . . . . . . . . . . . . . . . . . . . 6 . Damage Inflicted 35211 | 59 1235 112 . 352 2152 2102 2471 2315 2332 1744 . 2534 4635 5592 417 634 . 66 250 . 434 2220 834 . . 1675 1046 Guns 13005 | 59 1170 112 . 246 1887 1848 49 . 225 180 . . 2709 2394 152 130 . 66 136 . 434 1208 . . . . . Cannons 14664 | . . . . . . . 2410 2315 2097 1564 . 2480 1488 1778 265 153 . . 114 . . . . . . . . Explosions 3057 | . 43 . . 97 240 254 . . . . . . 276 1135 . . . . . . . 1012 . . . . . Melee 4403 | . . . . . . . . . . . . 54 158 285 . 351 . . . . . . 834 . . 1675 1046 Ramming 82 | . 22 . . 9 25 . 12 . 10 . . . 4 . . . . . . . . . . . . . . Kinetic 227 | 47 70 . . . 31 . . . . . . . 79 . . . . . . . . . . . . . . Thermal 26860 | 12 961 . . 97 1674 1848 2459 2315 2322 1744 . 2480 4118 4172 417 283 . 66 250 . 434 1208 . . . . . Explosive 2917 | . . . . . 240 254 . . . . . . 276 1135 . . . . . . . 1012 . . . . . Electromagnetic 722 | . 182 112 . 246 182 . . . . . . . . . . . . . . . . . . . . . . Impact 1173 | . . . . . . . . . . . . 54 . 285 . . . . . . . . 834 . . . . Slashing 1361 | . . . . . . . . . . . . . 158 . . 351 . . . . . . . . . . 852 Piercing 1869 | . . . . . . . . . . . . . . . . . . . . . . . . . . 1675 194 Highest Corruption 14 | . . . . 9 . . . 4 3 3 3 6 . . . . . . . . . 6 14 . . . . Average Corruption 3 | . . . . 7 . . . 2 2 3 3 5 . . . . . . . . . 2 10 . . . . Corruption Purged . | . . . . . . . . . . . . . . . . . . . . . . . . . . . . Corruption Blocked 9 | . . . . . . . . . . . . . . . . . . . . . . . . . . 1 8 Effects 132 | . . . . 13 . . . 20 26 29 2 34 . . . . . . . . . 3 5 . . . . Message Errors 29 | . . . . 2 . . . 7 6 5 1 7 . . . . . . . . . . 1 . . . . Matter Fused 40 | . . . . 5 . . . 4 9 6 . 14 . . . . . . . . . . 2 . . . . Heat Flow Errors 9 | . . . . 1 . . . 1 2 4 . 1 . . . . . . . . . . . . . . . Energy Discharges 14 | . . . . . . . . 4 2 4 1 2 . . . . . . . . . 1 . . . . . Parts Fused 1 | . . . . . . . . . . . . . . . . . . . . . . 1 . . . . . Data Loss (minor) 16 | . . . . 2 . . . 1 1 4 . 6 . . . . . . . . . 1 1 . . . . Data Loss (major) 9 | . . . . 1 . . . 2 3 1 . 1 . . . . . . . . . . 1 . . . . Misfires 4 | . . . . 2 . . . . . 2 . . . . . . . . . . . . . . . . . Alerts 4 | . . . . . . . . . 1 2 . 1 . . . . . . . . . . . . . . . Weapon Failures 6 | . . . . . . . . 1 2 1 . 2 . . . . . . . . . . . . . . . Overload Shots . | . . . . . . . . . . . . . . . . . . . . . . . . . . . . Overflow Damage 2027 | . 21 . . 25 . . 90 252 85 19 . 125 3 350 20 43 . . 28 . . 26 311 . . 337 292 Projectiles 602 | . . . . . . . 90 252 85 19 . 71 3 30 20 4 . . 28 . . . . . . . . Explosions 190 | . 21 . . 25 . . . . . . . . . 118 . . . . . . . 26 . . . . . Melee 1235 | . . . . . . . . . . . . 54 . 202 . 39 . . . . . . 311 . . 337 292 Knockbacks 6 | . . . . 1 . . . . . . . . . . . . . . . . . . 5 . . . . Impact 6 | . . . . 1 . . . . . . . . . . . . . . . . . . 5 . . . . Kinetic . | . . . . . . . . . . . . . . . . . . . . . . . . . . . . Secondary . | . . . . . . . . . . . . . . . . . . . . . . . . . . . . Self-Inflicted Damage 182 | . 32 . . 52 . . . . . . . . . 98 . . . . . . . . . . . . . Shots 5 | . 1 . . 1 . . . . . . . . . 3 . . . . . . . . . . . . . Rammed 7 | . 3 . . . 1 . 1 . 2 . . . . . . . . . . . . . . . . . . Targets Rammed 22 | . 8 . . 4 6 . 1 . 2 . . . 1 . . . . . . . . . . . . . . Kicked 15 | . 5 . . 4 5 . . . . . . . 1 . . . . . . . . . . . . . . Crushed . | . . . . . . . . . . . . . . . . . . . . . . . . . . . . Highest Temperature 459 | 18 144 . . 171 446 459 8 . 128 116 . 236 212 239 63 12 . 18 18 . . 185 . . . 253 275 Average Temperature 82 | 9 45 . . 78 130 117 8 . 51 51 . 83 51 77 34 5 . 12 12 . . 77 . . . 80 63 Received Heat Transfer 4275 | . 570 . . 87 720 351 138 42 225 288 . 261 705 465 9 . . 45 . . . 315 9 . . 9 36 Effects 3 | . . . . . 3 . . . . . . . . . . . . . . . . . . . . . . Shutdowns 2 | . . . . . 2 . . . . . . . . . . . . . . . . . . . . . . Energy Bleed 1 | . . . . . 1 . . . . . . . . . . . . . . . . . . . . . . Siege Activations . | . . . . . . . . . . . . . . . . . . . . . . . . . . . . Martial Activations . | . . . . . . . . . . . . . . . . . . . . . . . . . . . . Shielding Activations . | . . . . . . . . . . . . . . . . . . . . . . . . . . . . Robots Disrupted . | . . . . . . . . . . . . . . . . . . . . . . . . . . . . Combat Hostiles . | . . . . . . . . . . . . . . . . . . . . . . . . . . . . Robots Corrupted 4 | . . . . . . . . . . . . 1 . 1 . . . . . . . . 2 . . . . Combat Hostiles 2 | . . . . . . . . . . . . 1 . . . . . . . . . . 1 . . . . Parts Fried 9 | . 1 1 . . . . . . . . . 1 . 3 . . . . . . . . 3 . . . . Impact Corruptions 16 | . . . . . . . . . . . . 1 . 3 . . . . . . . . 12 . . . . Robots Melted 23 | . . . . . . 4 . . 1 . . 1 9 7 . 1 . . . . . . . . . . . Combat Hostiles 19 | . . . . . . 4 . . 1 . . 1 7 5 . 1 . . . . . . . . . . . Parts Melted 136 | . 5 . . . 12 11 6 8 9 12 . 11 32 22 . . . . . . 1 7 . . . . . Heat Transferred 47986 | 37 2504 . . 100 4272 4625 3727 3107 3331 2976 . 3432 7843 7895 718 483 . 137 524 . 600 1675 . . . . . Parts Sabotaged 9 | . . . . . . . . . . . . . . 9 . . . . . . . . . . . . . Parts Stolen . | . . . . . . . . . . . . . . . . . . . . . . . . . . . . Parts Stripped . | . . . . . . . . . . . . . . . . . . . . . . . . . . . . Power Chain Reactions 3 | . 1 . . 2 . . . . . . . . . . . . . . . . . . . . . . . Alert | -11 -10 -10 -10 -9 -8 -8 -8 -8 -7 -7 -7 -7 -6 -6 -6 -6 -6 -6 -6 -6 -5 -5 -4 -3 -3 -2 -1 ------- Run | Yrd Mat Min Exi Min Mat Gar Mat Gar Fac Gar Fac Gar Fac Gar Fac Gar Fac Low Low Zio Pro Fac Fac Res DSF Res Acc Maximum Alert Level 5 | . . . . . . 3 2 3 2 3 2 3 2 5 3 3 2 . . . . . . . . . 1 Low Security (%) 43 | 100 100 100 . 100 100 14 . . 65 11 . . 29 . . . . . . . . 100 100 100 100 100 73 Level 1 18 | . . . . . . 25 27 6 22 35 19 23 53 3 . . . . . . . . . . . . 26 Level 2 19 | . . . . . . 24 72 50 11 35 80 31 16 9 . . 100 . . . . . . . . . . Level 3 14 | . . . . . . 35 . 42 . 16 . 45 . 26 100 100 . . . . . . . . . . . Level 4 3 | . . . . . . . . . . . . . . 49 . . . . . . . . . . . . . Level 5 . | . . . . . . . . . . . . . . 11 . . . . . . . . . . . . . High Security . | . . . . . . . . . . . . . . . . . . . . . . . . . . . . Max Security . | . . . . . . . . . . . . . . . . . . . . . . . . . . . . Peak Influence 1760 | 10 99 70 . 20 180 1011 575 1030 540 857 453 943 494 1760 1019 878 460 . . . . 102 114 18 15 178 391 Initial 924 | . . . . . . 113 492 329 540 102 449 268 494 330 924 706 460 . . . . 6 17 18 . 8 97 Average 369 | 1 23 22 . . 59 548 445 681 189 421 422 606 261 1183 938 828 431 . . . . 11 38 3 1 71 160 Influence Increases 10977 | 15 460 70 . 58 757 938 601 711 431 795 14 805 1118 1500 325 212 . 276 110 . 110 220 221 4 15 501 710 Destroy 0b10 Robot/C 5640 | . 260 60 . 40 460 460 360 360 280 420 . 480 660 840 160 100 . 180 80 . 100 140 20 . . 180 . Destroy 0b10 Robot/NC 295 | 15 30 . . . 40 . 60 . 10 . . . 30 25 . 15 . . . . . . 15 . . 25 30 Destroy Leader 886 | . 76 10 . 10 96 50 74 30 92 20 . 40 170 60 40 20 . 30 20 . 10 10 4 . . 22 2 Allied During Kill 391 | . . . . . 5 25 28 . . 25 . 18 34 73 105 17 . 51 10 . . . . . . . . Trap Triggered on 0b10 10 | . . . . . . . . . . . . . 10 . . . . . . . . . . . . . . Successful Hack 263 | . 15 . . . 17 7 13 14 5 . 14 21 19 28 . . . . . . . . . 4 . 58 48 Select Force Hacks 30 | . 30 . . . . . . . . . . . . . . . . . . . . . . . . . . Disable Machine 255 | . . . . . 30 . 30 . 15 . . . 45 30 15 . . . . . . 15 15 . . 15 45 Anti-Garrison Action 1450 | . . . . . . 350 . 250 . 250 . 200 . 350 . 50 . . . . . . . . . . . Destroy Structure 557 | . 4 . . 8 19 16 36 27 14 35 . 46 30 79 5 10 . . . . . 40 2 . . 51 135 Partial Spotted 135 | . . . . . . . . . 15 . . . . . . . . . . . . . . . . 45 75 Lose Combat Pursuer 1065 | . 45 . . . 90 30 . 30 . 45 . . 120 15 . . . 15 . . . 15 165 . 15 105 375 Influence Decreases 10592 | 15 460 70 . 58 582 102 1105 188 1314 85 488 245 1589 212 1076 343 478 386 236 164 100 194 220 41 . 353 488 Entered New Map 4448 | . . . . . . 62 519 178 490 45 408 115 449 142 836 303 418 148 56 164 . 4 19 19 . 7 66 Time Decay 4453 | 15 380 70 . 21 452 . 546 . 700 . 80 . 640 . 190 . 60 198 140 . 90 90 141 22 . 276 342 Lost Part 907 | . 80 . . 37 110 40 . 10 10 . . 20 220 50 10 . . . . . 10 100 60 . . 70 80 Lost Ally 530 | . . . . . 20 . 40 . 10 40 . 110 130 20 40 40 . 40 40 . . . . . . . . Purge Threat 254 | . . . . . . . . . 104 . . . 150 . . . . . . . . . . . . . . Squads Dispatched 55 | . 4 . . . 4 . 3 . 8 . . . 8 . 5 . . . . . . 4 4 . . 6 9 Investigation 13 | . 2 . . . 2 . 2 . . . . . 1 . . . . . . . . . 1 . . 1 4 Extermination 19 | . . . . . . . . . 7 . . . 3 . . . . . . . . 1 2 . . 3 3 Reinforcement 15 | . 2 . . . 2 . 1 . 1 . . . 4 . . . . . . . . . 1 . . 2 2 Assault 4 | . . . . . . . . . . . . . . . 2 . . . . . . 2 . . . . . Garrison 4 | . . . . . . . . . . . . . . . 3 . . . . . . 1 . . . . . Intercept . | . . . . . . . . . . . . . . . . . . . . . . . . . . . . Searches Triggered . | . . . . . . . . . . . . . . . . . . . . . . . . . . . . Construction Impeded 2 | . . . . . 2 . . . . . . . . . . . . . . . . . . . . . . Haulers Reinforced 1 | . . . . . . . . . . . . . . . . . . . . . . . . . . 1 . Active Scanning Responses . | . . . . . . . . . . . . . . . . . . . . . . . . . . . . Cargo Convoy Interrupts . | . . . . . . . . . . . . . . . . . . . . . . . . . . . . Alert ID Control Effect 5 | . . . . . . . . . . . . 2 3 . . . . . . . . . . . . . . Stealth | -11 -10 -10 -10 -9 -8 -8 -8 -8 -7 -7 -7 -7 -6 -6 -6 -6 -6 -6 -6 -6 -5 -5 -4 -3 -3 -2 -1 --------- Run | Yrd Mat Min Exi Min Mat Gar Mat Gar Fac Gar Fac Gar Fac Gar Fac Gar Fac Low Low Zio Pro Fac Fac Res DSF Res Acc Distress Signals 19 | . 1 . . . 4 . 2 . 1 . . . 2 . . . . . . . . 1 3 . . 1 4 Communications Jammed 55 | . . . . . . . . . 6 . . . 49 . . . . . . . . . . . . . . Distress Signals 55 | . . . . . . . . . 6 . . . 49 . . . . . . . . . . . . . . Times Spotted 441 | . 31 3 . 2 38 24 25 18 25 21 . 27 52 44 9 9 . 12 5 . 4 18 8 . 1 25 40 Peak Tracking Total 15 | . 5 3 . 2 8 5 4 5 3 4 . 8 6 8 2 4 . 4 3 . 3 7 7 . 1 9 15 Tactical Retreats 37 | . 3 . . . 4 1 . 1 . 1 . . 7 1 . . . 1 . . . 1 5 . 1 2 9 Traps | -11 -10 -10 -10 -9 -8 -8 -8 -8 -7 -7 -7 -7 -6 -6 -6 -6 -6 -6 -6 -6 -5 -5 -4 -3 -3 -2 -1 ------- Run | Yrd Mat Min Exi Min Mat Gar Mat Gar Fac Gar Fac Gar Fac Gar Fac Gar Fac Low Low Zio Pro Fac Fac Res DSF Res Acc Traps Triggered 44 | . 3 . . . 3 5 2 4 3 5 . 4 3 3 . 2 . . . . . 2 2 . . 3 . Indirectly . | . . . . . . . . . . . . . . . . . . . . . . . . . . . . Trap Hack Attempts 9 | . . . . . . . . . . . . . 9 . . . . . . . . . . . . . . Triggered . | . . . . . . . . . . . . . . . . . . . . . . . . . . . . Disarmed . | . . . . . . . . . . . . . . . . . . . . . . . . . . . . Reprogrammed 1 | . . . . . . . . . . . . . 1 . . . . . . . . . . . . . . Reused 1 | . . . . . . . . . . . . . 1 . . . . . . . . . . . . . . Traps Extracted . | . . . . . . . . . . . . . . . . . . . . . . . . . . . . Installed . | . . . . . . . . . . . . . . . . . . . . . . . . . . . . Triggered 1 | . . . . . . . . . . . . . 1 . . . . . . . . . . . . . . Machines | -11 -10 -10 -10 -9 -8 -8 -8 -8 -7 -7 -7 -7 -6 -6 -6 -6 -6 -6 -6 -6 -5 -5 -4 -3 -3 -2 -1 ---------- Run | Yrd Mat Min Exi Min Mat Gar Mat Gar Fac Gar Fac Gar Fac Gar Fac Gar Fac Low Low Zio Pro Fac Fac Res DSF Res Acc Machines Disabled 40 | . . . . . 2 6 2 3 1 4 . 3 3 6 1 1 . . 1 . 1 1 1 . . 1 3 Max in Single Turn 1 | . . . . . 1 1 1 1 1 1 . 1 1 1 . 1 . . . . 1 1 1 . . 1 1 Garrison Access 7 | . . . . . . . . . . . . . . . . . . . . . . 1 . . . 1 5 Garrison Relay 16 | . . . . . . 4 . 2 . 3 . 2 . 4 . 1 . . . . . . . . . . . Phase Generator 2 | . . . . . . 1 . 1 . . . . . . . . . . . . . . . . . . . Machines Repaired . | . . . . . . . . . . . . . . . . . . . . . . . . . . . . Machines Dismantled 2 | . . . . . . 1 . 1 . . . . . . . . . . . . . . . . . . . Machines Sabotaged . | . . . . . . . . . . . . . . . . . . . . . . . . . . . . Overloaded Fab Kills . | . . . . . . . . . . . . . . . . . . . . . . . . . . . . Hacking | -11 -10 -10 -10 -9 -8 -8 -8 -8 -7 -7 -7 -7 -6 -6 -6 -6 -6 -6 -6 -6 -5 -5 -4 -3 -3 -2 -1 --------- Run | Yrd Mat Min Exi Min Mat Gar Mat Gar Fac Gar Fac Gar Fac Gar Fac Gar Fac Low Low Zio Pro Fac Fac Res DSF Res Acc Machines Accessed 81 | . 8 . 2 . 5 4 7 2 7 . 2 2 6 3 1 . . . . . 1 2 3 4 . 8 14 Terminals 50 | . 6 . . . 3 4 5 2 4 . 1 2 2 3 . . . . . . . 2 2 2 . 5 7 Fabricators 4 | . . . . . . . . . 1 . . . 1 . . . . . . . . . . . . 1 1 Repair Stations 9 | . 1 . . . 1 . 1 . 1 . . . 1 . . . . . . . . . 1 1 . 1 1 Recycling Units 1 | . 1 . . . . . . . . . . . . . . . . . . . . . . . . . . Scanalyzers 1 | . . . . . . . . . . . . . 1 . . . . . . . . . . . . . . Garrison Access 13 | . . . . . 1 . 1 . 1 . 1 . 1 . 1 . . . . . . . . 1 . 1 5 Total Hacks 192 | . 24 . 2 . 16 5 14 3 19 . 6 5 13 7 2 . . . . . 1 3 10 9 . 24 29 Successful 76 | . 16 . 2 . 8 1 5 2 4 . 2 2 6 2 1 . . . . . 1 1 1 4 . 9 9 Failed 115 | . 7 . . . 8 4 9 1 15 . 4 3 7 5 1 . . . . . . 2 9 5 . 15 20 Catastrophic 26 | . 1 . . . 1 2 3 1 2 . 1 1 1 3 1 . . . . . . . 2 2 . 2 3 Database Lockouts 1 | . 1 . . . . . . . . . . . . . . . . . . . . . . . . . . Manual 89 | . 20 . 1 . 9 . 6 1 12 . 4 1 5 1 1 . . . . . . 1 . 1 . 9 17 Terminals 129 | . 21 . . . 11 5 8 3 15 . 3 5 5 7 . . . . . . . 3 3 5 . 18 17 Fabricators 7 | . . . . . . . . . 2 . . . 1 . . . . . . . . . . . . 2 2 Repair Stations 29 | . 2 . . . 3 . 3 . 1 . . . 3 . . . . . . . . . 7 2 . 3 5 Recycling Units 1 | . 1 . . . . . . . . . . . . . . . . . . . . . . . . . . Scanalyzers 2 | . . . . . . . . . . . . . 2 . . . . . . . . . . . . . . Garrison Access 21 | . . . . . 2 . 3 . 1 . 3 . 2 . 2 . . . . . . . . 2 . 1 5 Terminal Hacks 22 | . 3 . 2 . 1 1 1 2 . . . 2 1 2 . . . . . . 1 . 1 1 . 4 . Record 2 | . . . 1 . . . . . . . . . . . . . . . . . 1 . . . . . . Robot Schematic 1 | . . . . . 1 . . . . . . . . . . . . . . . . . . . . . . Robot Analysis 1 | . 1 . . . . . . . . . . . . . . . . . . . . . . . . . . Prototype ID Bank 2 | . 1 . . . . . . . . . . . . . . . . . . . . . . . . 1 . Open Door 2 | . . . . . . 1 . . . . . 1 . . . . . . . . . . . . . . . Open DSF 2 | . . . . . . . . . . . . . . . . . . . . . . . 1 1 . . . Level Access Points 1 | . . . . . . . . . . . . . . . . . . . . . . . . . . 1 . Emergency Access Points 4 | . . . . . . . . 1 . . . 1 . 1 . . . . . . . . . . . 1 . Terminal Index 1 | . 1 . . . . . . . . . . . . . . . . . . . . . . . . . . Repair Station Index 1 | . . . . . . . 1 . . . . . . . . . . . . . . . . . . . . Zone Layout 2 | . . . . . . . . . . . . . 1 . . . . . . . . . . . . 1 . Patrol Navigation 2 | . . . . . . . . 1 . . . . . 1 . . . . . . . . . . . . . Proto ID Catalog 1 | . . . 1 . . . . . . . . . . . . . . . . . . . . . . . . Fabricator Hacks 1 | . . . . . . . . . . . . . . . . . . . . . . . . . . 1 . Build 1 | . . . . . . . . . . . . . . . . . . . . . . . . . . 1 . Repair Station Hacks 11 | . 2 . . . 2 . 2 . . . . . 1 . . . . . . . . . . 2 . . 2 Scan Component 6 | . 1 . . . 1 . 1 . . . . . 1 . . . . . . . . . . 1 . . 1 Repair 5 | . 1 . . . 1 . 1 . . . . . . . . . . . . . . . . 1 . . 1 Recycling Unit Hacks . | . . . . . . . . . . . . . . . . . . . . . . . . . . . . Scanalyzer 2 | . . . . . . . . . . . . . 2 . . . . . . . . . . . . . . Insert Component 1 | . . . . . . . . . . . . . 1 . . . . . . . . . . . . . . Analyze 1 | . . . . . . . . . . . . . 1 . . . . . . . . . . . . . . Garrison Access Hacks 13 | . . . . . 1 . 1 . 1 . 1 . 1 . 1 . . . . . . . . 1 . 1 5 Unlock Access 7 | . . . . . 1 . 1 . 1 . 1 . 1 . 1 . . . . . . . . 1 . . . Seal Access 6 | . . . . . . . . . . . . . . . . . . . . . . . . . . 1 5 Unauthorized Hacks 26 | . 11 . . . 4 . 1 . 3 . 1 . 1 . . . . . . . . 1 . . . 3 1 Terminals 24 | . 10 . . . 4 . 1 . 3 . 1 . 1 . . . . . . . . 1 . . . 2 1 Track 2 | . 2 . . . . . . . . . . . . . . . . . . . . . . . . . . Assimilate 1 | . . . . . . . . . . . . . . . . . . . . . . . . . . 1 . Botnet 13 | . 2 . . . 2 . 1 . 3 . 1 . 1 . . . . . . . . 1 . . . 1 1 Disrupt 1 | . . . . . 1 . . . . . . . . . . . . . . . . . . . . . . Skim 7 | . 6 . . . 1 . . . . . . . . . . . . . . . . . . . . . . Fabricators 1 | . . . . . . . . . . . . . . . . . . . . . . . . . . 1 . Prioritize 1 | . . . . . . . . . . . . . . . . . . . . . . . . . . 1 . Repair Stations . | . . . . . . . . . . . . . . . . . . . . . . . . . . . . Recycling Units 1 | . 1 . . . . . . . . . . . . . . . . . . . . . . . . . . Tunnel 1 | . 1 . . . . . . . . . . . . . . . . . . . . . . . . . . Scanalyzers . | . . . . . . . . . . . . . . . . . . . . . . . . . . . . Garrison Access . | . . . . . . . . . . . . . . . . . . . . . . . . . . . . Data Cores Recovered 1 | . . . . . . . . . . . . . . . . . . . . . . . . . . . 1 Used . | . . . . . . . . . . . . . . . . . . . . . . . . . . . . Hacking Detections 62 | . 6 . . . 4 4 6 2 7 . 2 1 6 3 1 . . . . . . 2 2 2 . 6 8 Full Trace Events 10 | . . . . . 1 . 1 . . . . . 1 1 . . . . . . . . 1 . . 1 4 Feedback Events 1 | . . . . . . . . . . . . . . . . . . . . . . . . . . . 1 Hackware Fried 1 | . . . . . . . . . . . . . . . . . . . . . . . . . . . 1 Feedback Blocked 2 | . . . . . . . . . . . . . . . . . . . . . . . . . . 1 1 Robot Schematics Acquired 1 | . . . . . 1 . . . . . . . . . . . . . . . . . . . . . . Robots Built . | . . . . . . . . . . . . . . . . . . . . . . . . . . . . Authchips . | . . . . . . . . . . . . . . . . . . . . . . . . . . . . Time . | . . . . . . . . . . . . . . . . . . . . . . . . . . . . Total Robot Build Rating . | . . . . . . . . . . . . . . . . . . . . . . . . . . . . Part Schematics Acquired 1 | . . . . . . . . . . . . . 1 . . . . . . . . . . . . . . Parts Built 2 | . . . . . . . . . . . . . . . . . . . . . . . . . . 2 . Authchips . | . . . . . . . . . . . . . . . . . . . . . . . . . . . . Time 139 | . . . . . . . . . . . . . . . . . . . . . . . . . . 139 . Total Part Build Rating 18 | . . . . . . . . . . . . . . . . . . . . . . . . . . 18 . Parts Repaired 5 | . 1 . . . 1 . 1 . . . . . . . . . . . . . . . . 1 . . 1 Time 171 | . 26 . . . 38 . 38 . . . . . . . . . . . . . . . . 50 . . 19 Parts Recycled . | . . . . . . . . . . . . . . . . . . . . . . . . . . . . Recycled Matter . | . . . . . . . . . . . . . . . . . . . . . . . . . . . . Retrieved Matter . | . . . . . . . . . . . . . . . . . . . . . . . . . . . . Retrieved Components . | . . . . . . . . . . . . . . . . . . . . . . . . . . . . Parts Scanalyzed 1 | . . . . . . . . . . . . . 1 . . . . . . . . . . . . . . Part Schematics Acquired 1 | . . . . . . . . . . . . . 1 . . . . . . . . . . . . . . Parts Damaged . | . . . . . . . . . . . . . . . . . . . . . . . . . . . . Bothacking | -11 -10 -10 -10 -9 -8 -8 -8 -8 -7 -7 -7 -7 -6 -6 -6 -6 -6 -6 -6 -6 -5 -5 -4 -3 -3 -2 -1 ------------ Run | Yrd Mat Min Exi Min Mat Gar Mat Gar Fac Gar Fac Gar Fac Gar Fac Gar Fac Low Low Zio Pro Fac Fac Res DSF Res Acc Used RIF Installer 5 | . . . . . . 1 . 1 . 1 . 1 . . . 1 . . . . . . . . . . . Hotswap 1 | . . . . . . . . . . . . 1 . . . . . . . . . . . . . . . Command Fork 1 | . . . . . . . . . . . . . . . . 1 . . . . . . . . . . . Signal Jammer 1 | . . . . . . . . 1 . . . . . . . . . . . . . . . . . . . Alert ID Control 1 | . . . . . . . . . . 1 . . . . . . . . . . . . . . . . . Robots Hacked 28 | . . . . . . . . . 2 4 . 7 9 . . 2 . 2 2 . . . . . . . . Non-combat 9 | . . . . . . . . . 2 2 . 1 4 . . . . . . . . . . . . . . Combat 19 | . . . . . . . . . . 2 . 6 5 . . 2 . 2 2 . . . . . . . . Robot Hacks Applied 31 | . . . . . . . . . 3 4 . 8 10 . . 2 . 2 2 . . . . . . . . parse_system 3 | . . . . . . . . . . . . 1 . . . 1 . . 1 . . . . . . . . no_distress 1 | . . . . . . . . . . . . . 1 . . . . . . . . . . . . . . purge_threat 2 | . . . . . . . . . 1 . . . 1 . . . . . . . . . . . . . . block_reporting 1 | . . . . . . . . . 1 . . . . . . . . . . . . . . . . . . find_garrison 1 | . . . . . . . . . . . . . 1 . . . . . . . . . . . . . . spike_heat 1 | . . . . . . . . . . . . . 1 . . . . . . . . . . . . . . amplify_resonance 2 | . . . . . . . . . . . . . . . . 1 . 1 . . . . . . . . . reboot_system 2 | . . . . . . . . . . . . 1 . . . . . . 1 . . . . . . . . overwrite_iff 2 | . . . . . . . . . . . . 1 1 . . . . . . . . . . . . . . formatsys_low 7 | . . . . . . . . . 1 2 . 1 3 . . . . . . . . . . . . . . formatsys_high 9 | . . . . . . . . . . 2 . 4 2 . . . . 1 . . . . . . . . . Relay Couplers Released 71 | . . . . . . 15 . 9 . 13 . 13 . 17 . 3 . . . . . 1 . . . . . Machine Destruction 67 | . . . . . . 15 . 9 . 13 . 9 . 17 . 3 . . . . . 1 . . . . . Programmers 4 | . . . . . . . . . . . . 4 . . . . . . . . . . . . . . . Attached 11 | . . . . . . . . . 1 2 . 4 2 1 . 1 . . . . . . . . . . . Fabnet Peak Effective % . | . . . . . . . . . . . . . . . . . . . . . . . . . . . . Robots Rewired 13 | . . . . . . 2 . . . 1 . . . 10 . . . . . . . . . . . . . Allies Hacked 8 | . . . . . . . . . 2 . . 1 3 . . 2 . . . . . . . . . . . Hacks Repelled . | . . . . . . . . . . . . . . . . . . . . . . . . . . . . Allies | -11 -10 -10 -10 -9 -8 -8 -8 -8 -7 -7 -7 -7 -6 -6 -6 -6 -6 -6 -6 -6 -5 -5 -4 -3 -3 -2 -1 -------- Run | Yrd Mat Min Exi Min Mat Gar Mat Gar Fac Gar Fac Gar Fac Gar Fac Gar Fac Low Low Zio Pro Fac Fac Res DSF Res Acc Total Allies 39 | . . . . 2 . 2 . . 1 6 . 8 6 10 . 2 . 1 . . . . . . . 1 . Largest Group 8 | . . . . 2 2 2 2 . 1 4 4 4 6 8 8 6 3 3 2 . . . . . . 1 . Highest-Rated Group 240 | . . . . 45 45 56 56 . 23 87 87 104 159 240 240 180 180 180 153 . . . . . . 26 . Highest-Rated Ally 90 | . . . . 31 31 31 31 . 23 23 23 32 90 40 40 80 80 80 77 . . . . . . 26 . Total Orders 12 | . . . . . . . . . 1 4 . 5 2 . . . . . . . . . . . . . . STAY 1 | . . . . . . . . . . . . 1 . . . . . . . . . . . . . . . FOLLOW 1 | . . . . . . . . . . 1 . . . . . . . . . . . . . . . . . AID 9 | . . . . . . . . . 1 3 . 4 1 . . . . . . . . . . . . . . DROP 1 | . . . . . . . . . . . . . 1 . . . . . . . . . . . . . . Ally Attacks 231 | . . . . . 9 12 25 . . 22 . 21 40 9 31 17 . 29 16 . . . . . . . . Total Damage 5742 | . . . . . 130 202 396 . . 562 . 423 802 244 738 347 . 1382 516 . . . . . . . . Kills 42 | . . . . . 3 2 3 . . 5 . 4 6 1 5 3 . 8 2 . . . . . . . . Allies Corrupted 2 | . . . . . . . . . . . . . . . 1 . . . 1 . . . . . . . . Allies Melted . | . . . . . . . . . . . . . . . . . . . . . . . . . . . . Intel | -11 -10 -10 -10 -9 -8 -8 -8 -8 -7 -7 -7 -7 -6 -6 -6 -6 -6 -6 -6 -6 -5 -5 -4 -3 -3 -2 -1 ------- Run | Yrd Mat Min Exi Min Mat Gar Mat Gar Fac Gar Fac Gar Fac Gar Fac Gar Fac Low Low Zio Pro Fac Fac Res DSF Res Acc Active Infowar (turns) 1252 | 26 548 . . . . . . . . . . . . . . . . . . . . . . . . . 678 Terrain 632 | . . . . . . . . . . . . . . . . . . . . . . . . . . . 632 Structural 172 | . 172 . . . . . . . . . . . . . . . . . . . . . . . . . . Seismic 402 | 26 376 . . . . . . . . . . . . . . . . . . . . . . . . . . Machine Analysis 624 | . . . . . . . . . . . . . . . . . . . . . . . . . . . 624 Robot Analysis Total 1 | . 1 . . . . . . . . . . . . . . . . . . . . . . . . . . Derelict Logs Recovered 3 | . . . . . . . . . . . . . . . . . . 1 1 . 1 . . . . . . Drone Launches . | . . . . . . . . . . . . . . . . . . . . . . . . . . . . Drone Recoveries . | . . . . . . . . . . . . . . . . . . . . . . . . . . . . Exploration | -11 -10 -10 -10 -9 -8 -8 -8 -8 -7 -7 -7 -7 -6 -6 -6 -6 -6 -6 -6 -6 -5 -5 -4 -3 -3 -2 -1 ------------- Run | Yrd Mat Min Exi Min Mat Gar Mat Gar Fac Gar Fac Gar Fac Gar Fac Gar Fac Low Low Zio Pro Fac Fac Res DSF Res Acc Turns Passed 23656 | 64 1578 215 549 484 1571 1547 1561 1209 3313 1445 173 1352 2288 1657 384 348 130 419 287 146 375 479 456 178 69 610 769 Spaces Moved 13792 | 43 787 102 289 210 594 650 582 422 1209 514 75 496 1026 821 272 225 109 366 238 135 280 353 456 279 84 1228 1947 Core 254 | 1 1 . . . 1 . . . . . . . 1 . . . . . . . . 14 236 . . . . Treads 4484 | . 18 . . . 369 650 582 422 1209 514 75 496 149 . . . . . . . . . . . . . . Legs 3438 | . 568 102 289 210 224 . . . . . . . 876 821 272 76 . . . . . . . . . . . Wheels 1795 | 42 200 . . . . . . . . . . . . . . 149 109 366 238 135 280 276 . . . . . Hover 795 | . . . . . . . . . . . . . . . . . . . . . . 63 220 279 84 149 . Flight 3026 | . . . . . . . . . . . . . . . . . . . . . . . . . . 1079 1947 Fastest Speed 8 | 50 50 190 190 190 120 145 232 232 155 155 230 150 120 120 120 105 105 105 105 105 105 40 40 48 48 8 8 Average Speed 133 | 79 157 190 190 190 194 197 232 232 232 230 230 224 169 131 120 111 105 105 105 105 106 104 60 54 49 20 17 Slowest Speed 400 | 80 330 190 190 260 225 225 232 385 235 235 230 235 400 190 120 195 105 105 105 105 120 165 100 60 58 69 27 Overloaded Moves 26 | . . . . . . . . . . . . . . . . . . . . . . . . . . 9 17 Propulsion Burnouts . | . . . . . . . . . . . . . . . . . . . . . . . . . . . . Robots Hopped 16 | . . . . . . . . . . . . . . . . . . . . . . . . . . 10 6 Potential Cave-ins . | . . . . . . . . . . . . . . . . . . . . . . . . . . . . Cave-ins Triggered 1 | . . . . . . . . . . . . . . . . . . . . . . . . . . . 1 Exploration Rate (%) 42 | 4 89 22 60 35 49 97 47 75 33 66 4 84 31 87 5 31 4 58 42 12 52 13 12 9 89 30 56 Regions Visited 27 Branch Regions 7 Pre-discovered Areas 3 | . 1 . 1 . . . . . . . . . . . . . . . . . 1 . . . . . . Known Exits Taken 11 | . 1 . . . 1 . 1 . 1 . 1 . 1 . 1 . . . . . 1 1 . 1 . 1 . Unknown Exits Taken 9 | 1 . 1 1 1 . . . . . . . . . . . . 1 1 1 1 . . 1 . . . . Scrap Searched 10 | . . . . . . . . . . . . . . . . . . 7 2 . 1 . . . . . . Spaces Dug 84 | . 1 . . . . 3 . 2 . 10 . 1 2 . . . . . . . . . 1 . . 17 47 Terrain Destroyed 307 | . 4 . . 9 15 23 34 2 15 10 . 1 26 62 5 . . 4 4 . . 28 1 . . 17 47 Melee 79 | . . . . . . 3 . 2 . 10 . 1 2 . . . . . . . . . 1 . . 17 43 Projectile 87 | . 1 . . . . 2 34 . 15 . . . 14 4 5 . . 4 4 . . . . . . . 4 AOE 141 | . 3 . . 9 15 18 . . . . . . 10 58 . . . . . . . 28 . . . . . Terrain Rammed . | . . . . . . . . . . . . . . . . . . . . . . . . . . . . Walls Destroyed . | . . . . . . . . . . . . . . . . . . . . . . . . . . . . Machines Disabled . | . . . . . . . . . . . . . . . . . . . . . . . . . . . . Actions | -11 -10 -10 -10 -9 -8 -8 -8 -8 -7 -7 -7 -7 -6 -6 -6 -6 -6 -6 -6 -6 -5 -5 -4 -3 -3 -2 -1 --------- Run | Yrd Mat Min Exi Min Mat Gar Mat Gar Fac Gar Fac Gar Fac Gar Fac Gar Fac Low Low Zio Pro Fac Fac Res DSF Res Acc Total 17163 | 59 990 112 289 276 855 779 700 518 1614 673 75 635 1346 1231 315 299 124 393 262 141 341 426 573 301 108 1488 2240 Wait 1506 | . 76 . . 42 114 22 55 19 326 42 . 31 85 101 17 33 15 11 12 . 41 28 59 7 . 175 195 Move 13737 | 42 786 101 288 209 594 649 581 421 1209 513 75 495 1025 820 271 224 108 365 237 134 279 352 455 278 83 1208 1935 Hop 14 | . . . . . . . . . . . . . . . . . . . . . . . . . . 9 5 Pick Up 128 | 4 4 5 1 . 12 9 5 3 2 13 . 7 17 6 4 3 1 1 1 . 2 5 3 . 7 7 6 Fast Attach 205 | 7 14 . . 1 24 1 6 1 7 4 . 11 36 16 3 6 . 3 2 1 . 4 11 8 8 22 9 Attach 65 | . 4 . . 2 6 4 . . . 2 . 3 10 5 1 . . 1 . 1 5 7 5 1 . 3 5 Detach 32 | . 2 . . . 2 . . . . 2 . 2 4 1 . 5 . . . 4 3 2 1 . . 3 1 Swap 147 | . 10 . . 4 14 9 5 3 16 14 . 8 15 21 3 4 . 3 1 . 1 . . 4 3 3 6 Drop 196 | 1 3 . . 3 18 10 10 3 8 18 . 15 19 22 9 1 . 4 2 1 3 4 5 3 7 17 10 Fire 688 | 5 83 6 . 11 63 46 37 48 41 38 . 54 109 93 7 5 . 5 7 . 6 15 . . . . 9 Melee 191 | . . . . . . 7 . 5 . 15 . 3 13 6 . 7 . . . . 1 . 34 . . 41 59 Ram 2 | . 2 . . . . . . . . . . . . . . . . . . . . . . . . . . Kick 15 | . 5 . . 4 5 . . . . . . . 1 . . . . . . . . . . . . . . Crush 5 | . 1 . . . 1 . 1 . 2 . . . . . . . . . . . . . . . . . . Escape Stasis 60 | . . . . . . 6 . 6 2 10 . 4 . 15 . 8 . . . . . 9 . . . . . Rewire 145 | . . . . . 2 7 . . 1 2 . 2 3 125 . 3 . . . . . . . . . . . Trap 9 | . . . . . . . . . . . . . 9 . . . . . . . . . . . . . . Miscellaneous 18 | . . . . . . 9 . 9 . . . . . . . . . . . . . . . . . . . Route ------- -11/Scrapyard -10/Materials (discovered 6 exits: *Mat x3 / *Min x2 / Sub) -10/Mines (discovered 4 exits: *Mat x2 / *Exi / Sub) -10/Exiles -9/Mines -8/Materials (discovered 3 exits: *Fac x2 / Gar) -8/Garrison (discovered 3 exits: *Mat x3) -8/Materials (discovered 2 exits: *Fac / Gar) -8/Garrison (discovered 3 exits: *Fac x3) -7/Factory (discovered 3 exits: *Fac / [*Low] / Gar) -7/Garrison (discovered 2 exits: *Fac x2) -7/Factory -7/Garrison (discovered 3 exits: *Fac x3) -6/Factory (discovered 2 exits: *Fac / Gar) -6/Garrison (discovered 3 exits: *Fac x3) -6/Factory -6/Garrison -6/Factory -6/Lower Caves -6/Lower Caves (discovered 2 exits: Fac / [*Zio]) -6/Zion -5/Proximity Caves -5/Factory -4/Factory -3/Research (discovered 2 exits: Gar / DSF) -3/DSF -2/Research (discovered 4 exits: *Acc x3 / [*Qua]) -1/Access To Epsilon Eridani History --------- Turn | Location | Event 5 | -11/Scrapyard | Discovered new exit (range 16) 65 | -11/Scrapyard | Entered Materials 187 | -10/Materials | Discovered new exit (range 9) 273 | -10/Materials | Central database locked down 316 | -10/Materials | Build established: Mutant 345 | -10/Materials | Identified exit to Mines 405 | -10/Materials | Identified exit to Materials 455 | -10/Materials | Learned 2 Mines zone layouts 496 | -10/Materials | Learned 4 Materials zone layouts 527 | -10/Materials | Learned location of 2 exits from Mines 547 | -10/Materials | Core integrity fell below 50% 556 | -10/Materials | Learned Storage trap positions 575 | -10/Materials | Identified exit to Subcaves 585 | -10/Materials | Lost 3 parts (1p2n) 695 | -10/Materials | Learned 4 Subcaves zone layouts 1070 | -10/Materials | Repaired Aluminum Leg 1643 | -10/Materials | Entered Mines 1794 | -10/Mines | Discovered exit to Materials (range 3) 1849 | -10/Mines | Deemed a non-threat by the Exiles lab entrance 1851 | -10/Mines | Discovered new exit (range 5) 1858 | -10/Mines | Entered Exiles 1904 | -10/Exiles | Met 8R-AWN 1938 | -10/Exiles | Met EX-HEX 2010 | -10/Exiles | Met EX-DEC 2022 | -10/Exiles | Learned location of Zion (-6) 2128 | -10/Exiles | Met EX-BIN 2155 | -10/Exiles | Aligned with FarCom system 2157 | -10/Exiles | Given EX-Vault access code 2200 | -10/Exiles | Opened EX-Vault 2214 | -10/Exiles | Found Superbattery 2253 | -10/Exiles | Warned to stay clear of 0b10 Research branches 2384 | -10/Exiles | Discovered new exit (range 14) 2407 | -10/Exiles | Left Exiles lab with Superbattery 2407 | -10/Exiles | Entered Mines 2412 | -9/Mines | Core integrity fell below 20% 2452 | -9/Mines | Lost 4 parts (1p1n2w) 2858 | -9/Mines | Discovered new exit (range 15) 2891 | -9/Mines | Entered Materials 2891 | -8/Materials | Accompanied by 2 allies 2891 | -8/Materials | Evolved 4 slots: Utility x2, Weapon x2 2898 | -8/Materials | Led the pair of lost Derelicts to an unsafe place 3000 | -8/Materials | Lost 3 parts (1p1u1w) 3095 | -8/Materials | Lost 7 parts (1p3n1u2w) 3152 | -8/Materials | Repaired Imp. Heat Sink 3349 | -8/Materials | Build established: Scavenger-Skirmisher 4058 | -8/Materials | Discovered new exit (range 5) 4369 | -8/Materials | Discovered new exit (range 10) 4462 | -8/Materials | Identified exit to Garrison 4462 | -8/Materials | Entered Garrison 4571 | -8/Garrison | Phase Generator disabled 4731 | -8/Garrison | Build established: Skirmisher 4732 | -8/Garrison | Triggered checkpoint 4780 | -8/Garrison | Garrison Relay disabled 4860 | -8/Garrison | Triggered checkpoint 4938 | -8/Garrison | Discovered new exit (range 8) 4965 | -8/Garrison | Garrison Relay disabled 5002 | -8/Garrison | Triggered checkpoint 5012 | -8/Garrison | Core integrity fell below 50% 5085 | -8/Garrison | Garrison Relay disabled 5260 | -8/Garrison | Triggered checkpoint 5342 | -8/Garrison | Build established: Scavenger-Skirmisher 5456 | -8/Garrison | Triggered checkpoint 5640 | -8/Garrison | Triggered checkpoint 5654 | -8/Garrison | Discovered new exit (range 15) 5782 | -8/Garrison | Triggered checkpoint 5881 | -8/Garrison | Garrison Relay disabled 5896 | -8/Garrison | Triggered checkpoint 5920 | -8/Garrison | Discovered new exit (range 11) 5976 | -8/Garrison | Installed Relay Interface Framework 6009 | -8/Garrison | Entered Materials 6009 | -8/Materials | Accompanied by 2 allies 6445 | -8/Materials | Build established: Skirmisher 6628 | -8/Materials | Discovered new exit (range 5) 6803 | -8/Materials | Identified exit to Garrison 7218 | -8/Materials | Repaired Adv. Treads 7570 | -8/Materials | Entered Garrison 7838 | -8/Garrison | Triggered checkpoint 8103 | -8/Garrison | Phase Generator disabled 8121 | -8/Garrison | Discovered new exit (range 3) 8198 | -8/Garrison | Garrison Relay disabled 8406 | -8/Garrison | Triggered checkpoint 8492 | -8/Garrison | Discovered new exit (range 8) 8538 | -8/Garrison | Triggered checkpoint 8573 | -8/Garrison | Garrison Relay disabled 8737 | -8/Garrison | Expanded RIF knowledge: Signal Jamming 8753 | -8/Garrison | Discovered new exit (range 12) 8779 | -8/Garrison | Entered Factory 8779 | -7/Factory | Evolved 2 slots: Propulsion x1, Utility x1 9348 | -7/Factory | Build established: Scavenger-Tank 9511 | -7/Factory | Discovered new exit (range 15) 10976 | -7/Factory | Allied Derelicts emerged from ambush trap array 11530 | -7/Factory | Build established: Skirmisher 11964 | -7/Factory | Discovered new exit (range 8) 12092 | -7/Factory | Identified exit to Garrison 12092 | -7/Factory | Entered Garrison 12094 | -7/Garrison | Triggered checkpoint 12250 | -7/Garrison | Garrison Relay disabled 12284 | -7/Garrison | Triggered checkpoint 12918 | -7/Garrison | Discovered new exit (range 10) 12952 | -7/Garrison | Rescued a captive Derelict 13004 | -7/Garrison | Garrison Relay disabled 13274 | -7/Garrison | Triggered checkpoint 13302 | -7/Garrison | Build established: Bothacker-Skirmisher 13373 | -7/Garrison | Discovered new exit (range 10) 13418 | -7/Garrison | Triggered checkpoint 13451 | -7/Garrison | Expanded RIF knowledge: Alert ID Control 13481 | -7/Garrison | Garrison Relay disabled 13537 | -7/Garrison | Entered Factory 13537 | -7/Factory | Accompanied by 4 allies 13710 | -7/Factory | Identified exit to Garrison 13710 | -7/Factory | Entered Garrison 13710 | -7/Garrison | Accompanied by 4 allies 13773 | -7/Garrison | Lost 3 allies 14000 | -7/Garrison | Triggered checkpoint 14090 | -7/Garrison | Lost 4 allies 14106 | -7/Garrison | Destroyed 10 combat bots 14152 | -7/Garrison | Garrison Relay disabled 14196 | -7/Garrison | Discovered new exit (range 15) 14242 | -7/Garrison | Expanded RIF knowledge: Hotswap 14325 | -7/Garrison | Build established: Skirmisher 14348 | -7/Garrison | Triggered checkpoint 14630 | -7/Garrison | Discovered new exit (range 10) 14750 | -7/Garrison | Build established: Scavenger-Skirmisher 14762 | -7/Garrison | Triggered checkpoint 14878 | -7/Garrison | Discovered new exit (range 12) 14984 | -7/Garrison | Triggered checkpoint 15021 | -7/Garrison | Garrison Relay disabled 15042 | -7/Garrison | Rescued a captive Derelict 15043 | -7/Garrison | Rescued a captive Derelict 15062 | -7/Garrison | Entered Factory 15062 | -6/Factory | Accompanied by 4 allies 15062 | -6/Factory | Evolved 2 slots: Propulsion x1, Utility x1 15156 | -6/Factory | Build established: Bothacker-Skirmisher 15437 | -6/Factory | Lost 3 parts (1n1u1w) 15460 | -6/Factory | Lost 6 allies 15523 | -6/Factory | Lost 6 parts (1p3n1u1w) 15698 | -6/Factory | Lost 3 parts (1u2w) 15996 | -6/Factory | Build established: Scavenger-Skirmisher 16696 | -6/Factory | Core integrity fell below 50% 16791 | -6/Factory | Lost 8 parts (1p3n1u3w) 16944 | -6/Factory | Discovered new exit (range 15) 17128 | -6/Factory | Build established: Scavenger-Gunner 17141 | -6/Factory | Allied Derelicts emerged from ambush trap array 17321 | -6/Factory | Identified exit to Garrison 17350 | -6/Factory | Entered Garrison 17399 | -6/Garrison | Triggered checkpoint 17564 | -6/Garrison | Triggered checkpoint 17604 | -6/Garrison | Destroyed 10 combat bots 17721 | -6/Garrison | Discovered new exit (range 15) 17764 | -6/Garrison | Core integrity fell below 20% 17863 | -6/Garrison | Garrison Relay disabled 17944 | -6/Garrison | Discovered new exit (range 9) 18011 | -6/Garrison | Garrison Relay disabled 18037 | -6/Garrison | Build established: Scavenger-Tank 18156 | -6/Garrison | Triggered checkpoint 18226 | -6/Garrison | Garrison Relay disabled 18256 | -6/Garrison | Triggered checkpoint 18364 | -6/Garrison | Build established: Scavenger-Skirmisher 18521 | -6/Garrison | Discovered new exit (range 13) 18802 | -6/Garrison | Triggered checkpoint 18852 | -6/Garrison | Garrison Relay disabled 18868 | -6/Garrison | Triggered checkpoint 19007 | -6/Garrison | Entered Factory 19007 | -6/Factory | Accompanied by 8 allies 19149 | -6/Factory | Garrison activated, responded to threat 19235 | -6/Factory | Identified exit to Garrison 19357 | -6/Factory | First assault squad dispatched 19391 | -6/Factory | Entered Garrison 19391 | -6/Garrison | Accompanied by 6 allies 19489 | -6/Garrison | Triggered checkpoint 19504 | -6/Garrison | Expanded RIF knowledge: Command Fork 19566 | -6/Garrison | Garrison Relay disabled 19645 | -6/Garrison | Triggered checkpoint 19699 | -6/Garrison | Discovered new exit (range 10) 19706 | -6/Garrison | Found embedded Infiltrators 19739 | -6/Garrison | Entered Factory 19739 | -6/Factory | Accompanied by 3 allies 19836 | -6/Factory | Discovered new exit (range 16) 19869 | -6/Factory | Entered Lower Caves 19869 | -6/Lower Caves | Accompanied by 3 allies 19870 | -6/Lower Caves | Encountered a Warlord checkpoint 20062 | -6/Lower Caves | Spotted B-75 Beast 20108 | -6/Lower Caves | Destroyed B-75 Beast 20130 | -6/Lower Caves | Learned location of 1 exit from Factory 20161 | -6/Lower Caves | Build established: Scavenger-Gunner 20251 | -6/Lower Caves | Discovered new exit (range 10) 20288 | -6/Lower Caves | Entered another Lower Caves area 20288 | -6/Lower Caves | Accompanied by 2 allies 20362 | -6/Lower Caves | Identified exit to Factory 20458 | -6/Lower Caves | Attacked by a delusional Derelict stockpiling parts 20544 | -6/Lower Caves | Discovered new exit (range 14) 20575 | -6/Lower Caves | Entered Zion 20626 | -6/Zion | Discovered new exit (range 14) 20686 | -6/Zion | Found Prototype Energy Gun 20686 | -6/Zion | Identified Storm Laser 20721 | -6/Zion | Entered Proximity Caves 20903 | -5/Proximity Caves | Learned location of Warlord (-4) 20983 | -5/Proximity Caves | Found Alien Artifact 21036 | -5/Proximity Caves | Discovered exit to Factory (range 15) 21039 | -5/Proximity Caves | Attracted the attention of an 0b10 checkpoint 21096 | -5/Proximity Caves | Entered Factory 21096 | -5/Factory | Evolved 2 slots: Propulsion x2 21097 | -5/Factory | Identified exit to Factory 21342 | -5/Factory | Garrison activated, responded to threat 21401 | -5/Factory | Build established: Scavenger-Skirmisher 21457 | -5/Factory | Spotted B-75 Beast 21534 | -5/Factory | Core integrity fell below 50% 21564 | -5/Factory | Lost 14 parts (2p6n4u2w) 21575 | -5/Factory | Entered another Factory area 21575 | -4/Factory | Evolved 2 slots: Propulsion x2 21621 | -4/Factory | Allied Derelicts emerged from ambush trap array 21767 | -4/Factory | Discovered new exit (range 8) 21822 | -4/Factory | Build established: Hacker-Mutant 21890 | -4/Factory | System corruption reached 10% 21950 | -4/Factory | Lost 6 parts (1p3n2u) 22031 | -4/Factory | Entered Research 22031 | -3/Research | Evolved 2 slots: Power x1, Utility x1 22075 | -3/Research | Identified exit to Garrison 22147 | -3/Research | Repaired Gravmag Array 22200 | -3/Research | Identified exit to DSF 22209 | -3/Research | Entered DSF 22255 | -3/DSF | Discovered new exit (range 15) 22259 | -3/DSF | Additional patrols routed to DSF 22278 | -3/DSF | Entered Research 22278 | -2/Research | Evolved 2 slots: Utility x2 22399 | -2/Research | Destroyed 8 combat bots 22405 | -2/Research | Lost 8 parts (2p2n3u1w) 22691 | -2/Research | Fabricated Quantum Reactor (x2) 22710 | -2/Research | Identified exit to Access 22725 | -2/Research | Discovered new exit (range 8) 22761 | -2/Research | Build established: Scavenger-Sprinter 22856 | -2/Research | Spotted B-90 Cyclops 22858 | -2/Research | Spotted B-90 Cyclops 22888 | -2/Research | Entered Access 22888 | -1/Access | Evolved 2 slots: Propulsion x1, Utility x1 22913 | -1/Access | Repaired Reaction Control System 23250 | -1/Access | Crushed by falling debris 23277 | -1/Access | Build established: Scavenger-Scout 23281 | -1/Access | Lost 3 parts (1p2n) 23326 | -1/Access | Found Prototype Processor 23326 | -1/Access | Identified Exp. Signal Interpreter 23425 | -1/Access | Imp. System Shield fried by hacking feedback 23456 | -1/Access | Lost 3 parts (1n1u1w) 23459 | -1/Access | Spotted B-99 Colossus 23521 | -1/Access | Spotted B-99 Colossus 23574 | -1/Access | Discovered new exit (range 11) 23639 | -1/Access | Spotted B-99 Colossus 23657 | *** | Escaped! Last Messages --------------- 23642_ Penetrated by Slug. 23642_ Slug penetrates Wall. 23642_ Adv. Surge Thruster destroyed. 23642_ Penetrated by Slug. 23642_ Slug penetrates Wall. 23644_ Sealed Heavy Doors breached. 23645_ Slug penetrates Sealed Heavy Doors. 23645_ Penetrated by Slug. 23645_ Slug penetrates Sealed Heavy Doors. 23645_ Slug penetrates B-99 Colossus. 23645_ Slug penetrates Sealed Heavy Doors. 23645_ Slug penetrates B-99 Colossus. 23645_ Slug penetrates Sealed Heavy Doors. 23649_ Field Propulsion Drive destroyed. 23649_ Slug penetrates Sealed Heavy Doors. 23649_ Slug penetrates Reinforced Barrier. 23650_ Dropped Greatsword. 23651_ Acquired 5 matter. 23652_ Slug penetrates Reinforced Barrier. 23654_ Main Access Shell breached. Map ----- +----------------------------------------------------+ | #??"""""??? ??????# #??????????# """ ?# | | #?????????? ??????# #??????????? " ?# "" | | ??????????????????# #??????????? ??# "" | | ??????????????????# #??????????# ??# " | | ??????????????????# #???????????####/#???# | | ??????????????????# #?#???????????? ??? | | ??????????????????# #????????????? ??? | | ??????????????????# #???????????? ??######### | | ??????????????????# #??????""?""? ???????????? | | #?????????????????# #??????""T"" ?? ?????? ??? | | ###+### ??? ??????? ???????"""???????????????? | | #???? ??????? ??????????????????? ? ???? | | ! #???????????? Y =?????????????s????????????? | | " #??????????????????????????????? ?????????? | | """ #?#?????????????????????????????s #????????? | | "" #?#????????????????????????????? #????????? | | " #?????#????????????????????????? #????????? | | #??##??????????????????????????? #????????? | | #?????#????????????????????????? #????????? | | ##?????#???????????????????????? #????????? | | #??#########??###???????"####### #????????? | | #??# "??" ???????" #????????? | | #??# BB "??" ???????" #????????? | | ########## BB "??" """"""??" #????????? | | "??" " " ?" #????????? | | "??" " "@ " ?" #????????? | | % "??" " "" "??" #???#?#??? | | % "?"" " ?" #????????? | | "## ### BB """ """""" " #????????? | | ??# #?# BB "" " ????"""" """ #???##???? | | ??# ##" % p/" """"T""" #??????#?? | | ??# #######################"####### #????????? | | ??# #??#??#??????#????#?#???#???#?# #?##?????? | | ??# #?????????#??#??????##??####??# #???#????? | | ??# #?#??################?##?###??# #????????? | | ?## #??### !! ##?###??#??# #????????? | | ??# #????# !! ######?????# #? ???? ? | | ??# #????# !! [ # ####### # ???? ? # | | #?# #????# + #????????? | | ??# #????# # + ?????? | | ### #?#### # ####### #????????? | | # ###"######h##########+######### #????????? | | # ### # #?# #?? ???? ? | | # "## = # #?# #??#???#?? | | # # # ! # #?# #???????#? | | # ##" # #?# #???????? | | % + ### ! # #?? ## ??? ? | | # #?####+###+#+################?? ^ ????????? | | # #??#?# ?? ? ????????? | | # ##?#?# ? ?? +???????? | +----------------------------------------------------+ Best States ------------- Heat Dissipation 97 Coolant Potential 100 Energy Generation 41 Energy Capacity 580 Matter Stores 300 Matter Capacity 300 Sight Range 16 Terrain Scan Range 14 Terrain Scan Density 85 Base Temperature (-) 100 Corruption Block 20 Armor Coverage 600 Resistance: KI 20 Resistance: EM 25 Core Shielding 30 Propulsion Shielding 33 Utility Shielding 66 Weapon Shielding 66 Weapon Cycling 15 Evasion (%) 74 Targeting Accuracy 8 Melee Accuracy 12 Recoil Reduction 3 Matter Filtering 50 Particle Charging 20 Defensive Hacking 30 Relay Coupler Types 3 Relay Coupler Value 58 Authchip Count 1 Item Schematics ----------------- Rnf. Deuterium Engine | -6/Factory | Scanalyzed Robot Schematics ------------------ M-28 Smith | -8/Materials | Hacked Fabricated ------------ Quantum Reactor | x2 | -2/Research | Preloaded Repaired ---------- Aluminum Leg | 11% | -10/Materials Imp. Heat Sink | 50% | -8/Materials Adv. Treads | 10% | -8/Materials Gravmag Array | 15% | -3/Research Reaction Control System | 33% | -1/Access Alien Tech Used ----------------- None Achievements -------------- None Challenges ------------ None Game ------ Seed NavigationSuperdenseBlade Manual? 0 Play Time 04:10:03 Cumulative 359.9 hours Start 2025.07.20 @ 11:16:18 End 2025.07.22 @ 21:41:16 Sessions 6 Manual Loads 0 Difficulty Rogue Special Mode None Game No. 173 Rogue 173 Adventurer 0 Explorer 0 Win Type 0 Total 24 Types 9/1/5/1/5/1/0/1/0/1 Lore% 90 Gallery% 79 Achievement% 76 Wizard Run 0 Options --------- Layout 1 ASCII 0 Keyboard 0 Movement Numpad Keybinds 0 Fullscreen 1 Font 24/Smallcaps Map View 50x35 Zoom Use 0% Tactical HUD 1 Map Filters NONE Filters NONE Steam 1 RUN: 7a9aee35-09a8-46f1-8229-57d6ba9249a9